bitfinex/quotes_BTCUSD_20240828
["timestamp","ask_amount","ask_price","bid_price","bid_amount"]
[1724876273596,0.505747,59318.0,59317.0,0.138]
[1724876274014,0.842912,59318.0,59317.0,0.004]
[1724876274234,1.180077,59318.0,59317.0,0.004]
[1724876274453,0.505798,59312.0,59311.0,0.0809]
[1724876274693,0.337165,59318.0,59300.0,0.337267]
[1724876274694,0.168609,59309.0,59300.0,0.337268]
[1724876274918,0.168611,59308.0,59303.0,0.168624]
[1724876275141,0.168611,59308.0,59300.0,0.337268]
[1724876275142,0.168612,59308.0,59306.0,0.0809]
[1724876275368,0.16861,59309.0,59308.0,0.0008998]
[1724876275709,0.16861,59309.0,59308.0,0.0621998]
[1724876276515,0.16961,59309.0,59308.0,0.0731998]
[1724876277035,0.506826,59309.0,59308.0,0.0731998]
[1724876278081,0.506826,59309.0,59308.0,0.0861998]
[1724876278292,0.506826,59309.0,59308.0,0.0731998]
[1724876278708,0.506826,59309.0,59308.0,0.0871998]
[1724876278956,0.16861,59309.0,59308.0,0.0761998]
[1724876279161,0.16961,59309.0,59308.0,0.0871998]
[1724876279784,0.844042,59309.0,59308.0,0.0871998]
[1724876279989,0.844042,59309.0,59308.0,0.0258998]
[1724876280443,1.181258,59309.0,59308.0,0.0258998]
[1724876280814,1.18567962,59309.0,59308.0,0.0258998]
[1724876281433,1.18567962,59309.0,59308.0,0.0118998]
[1724876282040,1.18567962,59309.0,59308.0,0.0008998]
[1724876282240,1.18617962,59309.0,59308.0,0.0098998]
[1724876282446,1.18617962,59309.0,59308.0,0.0158998]
[1724876282648,1.18417962,59309.0,59308.0,0.0008998]
[1724876282915,1.18417962,59309.0,59308.0,0.0078998]
[1724876283218,1.18517962,59309.0,59308.0,0.0078998]
[1724876283557,1.18517962,59309.0,59308.0,0.0128998]
[1724876286165,0.16911,59309.0,59308.0,0.1603998]
[1724876286748,0.001,59309.0,59308.0,0.1603998]
[1724876287025,0.001,59309.0,59308.0,0.3290108]
[1724876287181,0.001,59309.0,59308.0,1.0264548]
[1724876287393,0.001,59309.0,59308.0,1.3636768]
[1724876288144,0.001,59309.0,59308.0,1.0034548]
[1724876288347,0.001818,59309.0,59308.0,0.3290108]
[1724876288681,0.001818,59309.0,59308.0,0.1603998]
[1724876288881,0.001818,59309.0,59308.0,0.3290108]
[1724876290658,0.001818,59309.0,59308.0,1.0034548]
[1724876291308,0.001818,59309.0,59308.0,1.3406768]
[1724876292894,0.001818,59309.0,59308.0,1.4244968]
[1724876293571,0.001818,59309.0,59308.0,1.4474968]
[1724876294723,0.000818,59321.0,59320.0,0.505731]
[1724876294954,0.000818,59321.0,59320.0,0.981185]
[1724876295188,0.000818,59321.0,59320.0,0.644031]
[1724876296103,0.000818,59321.0,59320.0,0.658031]
[1724876296702,0.000818,59321.0,59320.0,1.009185]
[1724876296911,0.000818,59321.0,59320.0,0.672031]
[1724876298039,0.000818,59321.0,59320.0,1.369339]
[1724876307206,0.000818,59321.0,59320.0,0.672031]
[1724876307438,0.000818,59321.0,59320.0,1.009185]
[1724876307996,0.000818,59321.0,59320.0,1.346339]
[1724876308192,0.000818,59321.0,59320.0,1.009185]
[1724876309022,0.000818,59321.0,59320.0,1.346339]
[1724876310415,0.000818,59321.0,59320.0,1.369339]
[1724876312246,0.000818,59321.0,59320.0,1.009185]
[1724876313283,0.000818,59321.0,59320.0,0.672031]
[1724876313802,0.000818,59321.0,59320.0,1.009185]
[1724876315383,0.000818,59321.0,59320.0,1.346339]
[1724876317074,0.000818,59321.0,59320.0,1.369339]
[1724876319235,0.000818,59321.0,59320.0,1.706493]
[1724876321980,0.01765851,59335.0,59326.0,0.002]
[1724876322243,0.01765851,59335.0,59334.0,1.662433]
[1724876322458,0.00818,59340.0,59338.0,1.662334]
[1724876322688,0.00818,59340.0,59338.0,1.90096832]
[1724876322923,0.00818,59340.0,59338.0,2.26102032]
[1724876323377,0.00818,59340.0,59338.0,1.92196832]
[1724876323770,0.00818,59340.0,59338.0,1.92396832]
[1724876324005,0.00818,59340.0,59338.0,1.92196832]
[1724876324411,0.00818,59340.0,59338.0,1.93596832]
[1724876324823,0.00818,59340.0,59338.0,1.94996832]
[1724876325279,0.00818,59340.0,59338.0,1.95196832]
[1724876326544,0.00818,59340.0,59338.0,1.94996832]
[1724876327310,0.00818,59340.0,59338.0,1.95196832]
[1724876327507,0.00818,59340.0,59338.0,1.94996832]
[1724876328406,0.00818,59340.0,59338.0,2.29202032]
[1724876328792,0.00818,59340.0,59338.0,2.39202032]
[1724876329001,0.0245488,59366.0,59343.0,1.32178]
[1724876329208,0.0176488,59366.0,59358.0,0.645607]
[1724876329411,0.0176488,59366.0,59358.0,1.90305532]
[1724876329628,0.00818,59367.0,59358.0,2.03105532]
[1724876329834,0.00818,59367.0,59358.0,2.02605532]
[1724876330254,0.00818,59367.0,59358.0,2.03105532]
[1724876330460,0.00818,59367.0,59358.0,2.02605532]
[1724876330667,0.00818,59367.0,59358.0,1.447483]
[1724876331082,0.00818,59367.0,59358.0,1.46578705]
[1724876331308,0.00818,59367.0,59358.0,1.71642137]
[1724876331743,0.00818,59367.0,59358.0,1.68842137]
[1724876332155,0.00818,59367.0,59358.0,1.70242137]
[1724876332366,0.00818,59367.0,59358.0,2.03935937]
[1724876332591,0.00818,59367.0,59358.0,1.70442137]
[1724876332792,0.00818,59367.0,59366.0,0.505339]
[1724876332999,0.0096358,59375.0,59374.0,0.168423]
[1724876333209,0.0096358,59375.0,59374.0,0.66867]
[1724876333379,0.0096358,59375.0,59374.0,1.342364]
[1724876334003,0.0096358,59375.0,59374.0,1.358364]
[1724876334206,0.0096358,59375.0,59374.0,1.356364]
[1724876334608,0.0096358,59375.0,59374.0,1.370364]
[1724876335039,0.0096358,59375.0,59374.0,1.342364]
[1724876335247,0.0096358,59375.0,59374.0,1.679211]
[1724876335446,0.0004,59379.0,59378.0,1.183887]
[1724876335578,0.0004,59379.0,59378.0,1.779112]
[1724876335980,0.0004,59379.0,59378.0,1.442287]
[1724876336617,0.0004,59379.0,59378.0,1.419287]
[1724876336871,0.0004,59379.0,59378.0,1.433287]
[1724876337074,0.336752,59391.0,59381.0,0.336805]
[1724876337309,0.23663432,59393.0,59378.0,0.014]
[1724876337638,0.168385,59388.0,59378.0,0.014]
[1724876337846,0.24521432,59399.0,59380.0,0.0803]
[1724876338064,0.00858,59399.0,59383.0,0.0605]
[1724876338209,0.1,59398.0,59392.0,0.168371]
[1724876338422,0.1,59398.0,59394.0,0.168365]
[1724876338622,0.168356,59398.0,59392.0,0.16837]
[1724876339030,0.168356,59398.0,59393.0,0.168368]
[1724876339456,0.176935,59399.0,59392.0,0.336744]
[1724876339720,0.176935,59399.0,59394.0,0.168365]
[1724876339923,0.00858,59399.0,59395.0,0.168364]
[1724876340126,0.00858,59399.0,59398.0,0.505066]
[1724876340562,0.00858,59399.0,59398.0,0.168355]
[1724876340804,0.00858,59399.0,59393.0,0.340739]
[1724876340994,0.00858,59399.0,59396.0,0.168361]
[1724876341464,0.00858,59399.0,59396.0,0.33672]
[1724876341673,0.00858,59399.0,59398.0,0.168355]
[1724876341904,0.00858,59399.0,59396.0,0.16836]
[1724876342132,0.00858,59399.0,59398.0,0.168355]
[1724876342577,0.00858,59399.0,59398.0,0.505066]
[1724876342803,0.00858,59399.0,59398.0,0.841777]
[1724876343023,0.00858,59399.0,59398.0,0.935077]
[1724876343272,0.00858,59399.0,59398.0,1.271788]
[1724876343489,0.00858,59399.0,59398.0,1.333088]
[1724876343729,0.00858,59399.0,59398.0,0.943077]
[1724876343960,0.00858,59399.0,59398.0,0.524066]
[1724876344202,0.00858,59399.0,59398.0,0.019]
[1724876344409,0.513639,59399.0,59398.0,0.019]
[1724876344628,0.00858,59399.0,59398.0,0.1633]
[1724876344843,0.513639,59399.0,59398.0,0.019]
[1724876345056,0.00858,59399.0,59398.0,0.019]
[1724876345439,0.345286,59399.0,59398.0,0.019]
[1724876345658,1.187051,59399.0,59398.0,0.019]
[1724876346059,0.513639,59399.0,59398.0,0.019]
[1724876346262,0.00858,59399.0,59398.0,0.524066]
[1724876346434,0.00858,59399.0,59398.0,1.007877]
[1724876346637,0.00858,59399.0,59398.0,1.325588]
[1724876347067,0.00858,59399.0,59398.0,0.988877]
[1724876347412,0.00858,59399.0,59398.0,0.841777]
[1724876347616,0.00858,59399.0,59398.0,0.935277]
[1724876347832,0.00858,59399.0,59398.0,0.947277]
[1724876348055,0.00858,59399.0,59398.0,1.283988]
[1724876348267,0.00818,59404.0,59403.0,1.15904132]
[1724876348450,0.00818,59404.0,59403.0,1.28209]
[1724876348595,0.00818,59404.0,59403.0,0.585724]
[1724876348803,0.00818,59404.0,59403.0,0.922407]
[1724876349251,0.00818,59404.0,59403.0,1.32199]
[1724876349405,0.00818,59404.0,59403.0,1.34499]
[1724876350012,0.00818,59404.0,59403.0,0.648624]
[1724876350363,0.513195,59404.0,59403.0,0.028]
[1724876350598,0.176518,59404.0,59393.0,0.0807]
[1724876350803,0.176518,59404.0,59392.0,0.0847187]
[1724876350804,0.000817,59399.0,59395.0,0.336727]
[1724876351144,0.000817,59399.0,59396.0,0.168361]
[1724876351346,0.000817,59399.0,59395.0,0.168362]
[1724876351546,0.000817,59399.0,59392.0,0.0847187]
[1724876351763,0.16837,59393.0,59392.0,0.0847187]
[1724876351996,0.50511,59393.0,59392.0,0.0847187]
[1724876352252,0.16837,59393.0,59392.0,0.0847187]
[1724876352461,0.0085,59398.0,59395.0,0.168362]
[1724876352690,0.0085,59398.0,59392.0,0.4214597]
[1724876352903,0.000817,59399.0,59398.0,0.168355]
[1724876353132,0.000817,59399.0,59398.0,0.249155]
[1724876353348,0.00818,59404.0,59398.0,0.0808]
[1724876353555,0.00818,59404.0,59394.0,0.0808]
[1724876353760,0.00818,59404.0,59401.0,0.168347]
[1724876353975,0.00818,59404.0,59397.0,0.336713]
[1724876354115,0.00818,59404.0,59403.0,0.168341]
[1724876354329,0.00818,59404.0,59403.0,1.49318166]
[1724876354531,0.00818,59404.0,59403.0,1.34409]
[1724876354736,0.00318,59404.0,59403.0,1.34409]
[1724876356409,0.00318,59404.0,59403.0,1.36309]
[1724876356565,0.00318,59404.0,59403.0,1.47309]
[1724876356978,0.00318,59404.0,59403.0,1.48709]
[1724876357176,0.00318,59404.0,59403.0,1.47509]
[1724876357460,0.00318,59404.0,59403.0,1.811773]
[1724876358167,0.00318,59404.0,59403.0,1.47309]
[1724876358347,0.00318,59404.0,59403.0,1.46809]
[1724876358558,0.00318,59404.0,59403.0,1.45809]
[1724876358771,0.00318,59404.0,59403.0,1.47209]
[1724876358983,0.00318,59404.0,59403.0,1.44909]
[1724876359195,0.00318,59404.0,59403.0,1.46309]
[1724876359472,0.00318,59404.0,59403.0,1.42109]
[1724876359685,0.00318,59404.0,59403.0,1.43509]
[1724876359893,0.00318,59404.0,59403.0,1.44909]
[1724876360094,0.00318,59404.0,59403.0,1.42109]
[1724876360305,0.00318,59404.0,59403.0,1.776773]
[1724876360534,0.00318,59404.0,59403.0,1.823773]
[1724876360743,0.00318,59404.0,59403.0,1.818773]
[1724876360973,0.00318,59404.0,59403.0,1.825773]
[1724876361624,0.00318,59404.0,59403.0,1.811773]
[1724876362061,0.00020336,59406.0,59405.0,1.86869]
[1724876362273,0.00020336,59406.0,59405.0,2.13599]
[1724876362492,0.00020355,59420.0,59416.0,0.005]
[1724876362713,0.00020355,59420.0,59418.0,0.7984279]
[1724876362934,0.00020355,59420.0,59418.0,1.9886219]
[1724876363174,0.00020355,59420.0,59418.0,1.380493]
[1724876363410,0.00020355,59420.0,59418.0,1.379493]
[1724876363608,0.00020355,59420.0,59418.0,1.042895]
[1724876364088,0.00020355,59420.0,59419.0,1.178072]
[1724876364273,0.00020355,59420.0,59419.0,1.201072]
[1724876364491,0.00020355,59420.0,59419.0,0.86448]
[1724876364739,0.00020355,59420.0,59419.0,0.84148]
[1724876365509,0.00020355,59420.0,59419.0,0.85548]
[1724876365736,0.00020355,59420.0,59419.0,1.331172]
[1724876365973,0.00020355,59420.0,59419.0,1.368172]
[1724876366597,0.00020355,59420.0,59419.0,1.382172]
[1724876366796,0.00020355,59420.0,59419.0,1.718764]
[1724876367218,0.00020355,59420.0,59419.0,1.808764]
[1724876367647,0.00020355,59420.0,59419.0,1.780764]
[1724876368269,0.0661,59442.0,59438.0,0.168242]
[1724876368526,0.0661,59442.0,59438.0,0.841212]
[1724876368684,0.0661,59442.0,59438.0,0.504727]
[1724876369292,0.0661,59442.0,59438.0,0.168242]
[1724876369500,0.234332,59442.0,59438.0,0.168242]
[1724876369797,0.168232,59442.0,59438.0,0.028]
[1724876369963,0.00020322,59446.0,59438.0,0.869212]
[1724876370171,0.00020322,59446.0,59438.0,1.376597]
[1724876370948,0.00020322,59446.0,59438.0,1.311497]
[1724876371157,0.00020322,59446.0,59438.0,1.288497]
[1724876371667,0.00020322,59446.0,59445.0,1.177557]
[1724876371861,0.00020322,59446.0,59445.0,1.4950879]
[1724876372082,0.00020322,59446.0,59445.0,1.383857]
[1724876372273,0.00020322,59446.0,59445.0,1.720302]
[1724876372513,0.00020322,59446.0,59445.0,1.360857]
[1724876372860,0.00020322,59446.0,59445.0,0.955112]
[1724876373059,0.00020322,59446.0,59445.0,0.518667]
[1724876373356,0.00020322,59446.0,59445.0,0.526667]
[1724876373557,0.00020322,59446.0,59445.0,0.954612]
[1724876373770,0.00020322,59446.0,59445.0,1.314057]
[1724876374381,0.00020322,59446.0,59445.0,1.6792879]
[1724876374591,0.00857,59459.0,59458.0,0.840927]
[1724876374804,0.00817,59464.0,59463.0,0.840857]
[1724876375005,0.00817,59464.0,59463.0,1.694743]
[1724876375209,0.00817,59464.0,59463.0,2.0892739]
[1724876375615,0.00817,59464.0,59463.0,1.789743]
[1724876375834,0.00817,59464.0,59463.0,1.784743]
[1724876376050,0.00817,59464.0,59463.0,1.4434]
[1724876376258,0.00817,59464.0,59463.0,1.4574]
[1724876376868,0.00817,59464.0,59463.0,1.3917]
[1724876377068,0.00817,59464.0,59463.0,1.2002]
[1724876377272,0.00817,59464.0,59463.0,1.2142]
[1724876377548,0.00817,59464.0,59463.0,1.3543]
[1724876377750,0.011774,59494.0,59473.0,1.256604]
[1724876377960,0.011774,59494.0,59473.0,1.5741349]
[1724876378167,0.168091,59492.0,59473.0,1.5741349]
[1724876378381,0.011774,59494.0,59473.0,1.256604]
[1724876378382,0.066,59487.0,59473.0,1.256604]
[1724876378610,0.066,59487.0,59473.0,1.279604]
[1724876379007,0.086174,59494.0,59473.0,1.5741349]
[1724876379467,0.086174,59494.0,59473.0,1.9244219]
[1724876379646,0.086174,59494.0,59473.0,1.5741349]
[1724876380044,0.086174,59494.0,59493.0,0.840435]
[1724876380045,0.011774,59494.0,59493.0,0.840435]
[1724876380363,0.011774,59494.0,59493.0,1.339709]
[1724876380516,0.011774,59494.0,59493.0,1.675883]
[1724876380719,0.011774,59494.0,59493.0,1.339709]
[1724876381201,0.011774,59494.0,59493.0,1.680883]
[1724876381405,0.011774,59494.0,59493.0,1.339709]
[1724876381843,0.011774,59494.0,59493.0,0.863435]
[1724876382073,0.011774,59494.0,59493.0,0.504261]
[1724876382493,0.011774,59494.0,59493.0,0.251907]
[1724876382692,0.011774,59494.0,59493.0,0.08382]
[1724876382902,0.020174,59494.0,59493.0,0.11182]
[1724876383125,0.188258,59494.0,59493.0,0.09782]
[1724876383331,0.524426,59494.0,59493.0,0.08382]
[1724876383526,0.020174,59494.0,59493.0,0.09782]
[1724876383778,0.188258,59494.0,59493.0,0.09782]
[1724876384156,0.188258,59494.0,59493.0,0.11082]
[1724876384371,0.524426,59494.0,59493.0,0.11082]
[1724876384812,0.860594,59494.0,59493.0,0.11082]
[1724876385044,0.860594,59494.0,59493.0,0.09682]
[1724876385242,0.860594,59494.0,59493.0,0.09782]
[1724876385483,0.011774,59494.0,59493.0,0.11182]
[1724876385694,0.179858,59494.0,59493.0,0.09782]
[1724876386125,0.011774,59494.0,59493.0,0.11182]
[1724876386327,0.011774,59494.0,59493.0,0.09782]
[1724876386525,0.011774,59494.0,59493.0,0.08382]
[1724876386772,0.179858,59494.0,59493.0,0.09782]
[1724876387022,0.516026,59494.0,59493.0,0.09082]
[1724876387156,0.852194,59494.0,59493.0,0.09082]
[1724876387742,0.852194,59494.0,59493.0,0.09982]
[1724876388163,0.852194,59494.0,59493.0,0.09282]
[1724876388369,1.261062,59494.0,59493.0,0.09282]
[1724876388581,1.268062,59494.0,59493.0,0.09282]
[1724876388782,1.266062,59494.0,59493.0,0.10382]
[1724876389007,1.266878,59494.0,59493.0,0.09482]
[1724876389207,1.266878,59494.0,59493.0,0.09782]
[1724876389421,1.266878,59494.0,59493.0,0.10582]
[1724876389624,1.266878,59494.0,59493.0,0.09182]
[1724876389866,1.266878,59494.0,59493.0,0.09282]
[1724876390067,1.266878,59494.0,59493.0,0.08482]
[1724876390273,1.261878,59494.0,59493.0,0.08382]
[1724876390474,0.08829,59494.0,59493.0,0.08382]
[1724876390642,0.01559,59494.0,59493.0,0.251907]
[1724876390848,0.01559,59494.0,59493.0,0.588081]
[1724876391971,0.01559,59494.0,59493.0,0.08382]
[1724876392195,0.519842,59494.0,59493.0,0.08882]
[1724876392417,0.86141,59494.0,59493.0,0.08782]
[1724876392620,1.197578,59494.0,59493.0,0.08782]
[1724876392766,1.262378,59494.0,59493.0,0.09382]
[1724876393571,1.267378,59494.0,59493.0,0.09382]
[1724876393986,1.269378,59494.0,59493.0,0.09382]
[1724876394415,1.269378,59494.0,59493.0,0.08982]
[1724876394621,1.270378,59494.0,59493.0,0.08982]
[1724876394947,1.267378,59494.0,59493.0,0.08382]
[1724876395370,1.267378,59494.0,59493.0,0.08482]
[1724876395755,1.66369768,59494.0,59493.0,0.08482]
[1724876396026,1.69006497,59494.0,59493.0,0.08482]
[1724876396240,1.69006497,59494.0,59493.0,0.08582]
[1724876396905,1.80006497,59494.0,59493.0,0.08582]
[1724876397723,1.80606497,59494.0,59493.0,0.08582]
[1724876398101,1.80006497,59494.0,59493.0,0.08382]
[1724876398507,1.81306497,59494.0,59493.0,0.08582]
[1724876398734,1.80806497,59494.0,59493.0,0.08482]
[1724876398912,1.80006497,59494.0,59493.0,0.08382]
[1724876399129,1.39774529,59494.0,59493.0,0.08382]
[1724876399336,1.40974529,59494.0,59493.0,0.08382]
[1724876399692,1.39974529,59494.0,59493.0,0.08382]
[1724876399917,1.06357729,59494.0,59493.0,0.08482]
[1724876400121,1.06857729,59494.0,59493.0,0.08382]
[1724876400322,1.40674529,59494.0,59493.0,0.08382]
[1724876400535,1.40574529,59494.0,59493.0,0.08382]
[1724876400745,1.74191329,59494.0,59493.0,0.08382]
[1724876400947,1.75391329,59494.0,59493.0,0.08482]
[1724876401387,1.74691329,59494.0,59493.0,0.08382]
[1724876401594,1.41474529,59494.0,59493.0,0.08382]
[1724876401803,1.47146072,59494.0,59493.0,0.08382]
[1724876402009,1.40374529,59494.0,59493.0,0.08382]
[1724876402214,1.40774529,59494.0,59493.0,0.08382]
[1724876402432,1.74391329,59494.0,59493.0,0.08382]
[1724876402627,1.74391329,59494.0,59493.0,0.08482]
[1724876402628,1.75491329,59494.0,59493.0,0.08482]
[1724876402830,1.92346493,59494.0,59493.0,0.08482]
[1724876403030,1.92146493,59494.0,59493.0,0.08482]
[1724876403346,1.92146493,59494.0,59462.0,0.0804]
[1724876403347,0.0708,59479.0,59462.0,0.0804]
[1724876403556,0.566905,59464.0,59463.0,0.50540786]
[1724876403827,0.168179,59461.0,59453.0,0.0804]
[1724876404052,0.08878091,59464.0,59449.0,0.06520249]
[1724876404271,0.002,59463.0,59449.0,0.00020249]
[1724876404488,0.02638091,59464.0,59455.0,0.168192]
[1724876404704,0.16819,59457.0,59450.0,0.0756]
[1724876404908,0.336383,59456.0,59449.0,0.00020249]
[1724876405143,0.504625,59450.0,59449.0,0.00020249]
[1724876405360,0.841042,59450.0,59449.0,0.00020249]
[1724876405571,0.02638563,59455.0,59449.0,0.00020249]
[1724876405788,0.504625,59450.0,59449.0,0.00020249]
[1724876405996,0.02638563,59455.0,59450.0,0.008]
[1724876406222,0.02638563,59455.0,59449.0,0.00020249]
[1724876406223,0.336396,59454.0,59449.0,0.00020249]
[1724876406429,0.168207,59451.0,59449.0,0.00020249]
[1724876406661,0.7991559,59450.0,59449.0,0.01120249]
[1724876406870,1.4973899,59450.0,59449.0,0.00020249]
[1724876407092,1.4973899,59450.0,59419.0,0.086576]
[1724876407093,0.520118,59439.0,59419.0,0.086576]
[1724876407333,1.1730279,59439.0,59438.0,6e-07]
[1724876407550,1.64989285,59439.0,59438.0,6e-07]
[1724876407759,0.99449639,59439.0,59438.0,6e-07]
[1724876407987,0.99649639,59439.0,59438.0,6e-07]
[1724876408205,1.67785439,59439.0,59438.0,6e-07]
[1724876408433,1.67785439,59439.0,59419.0,0.008976]
[1724876408434,1.193454,59420.0,59419.0,0.008976]
[1724876408649,1.7720864,59420.0,59419.0,0.008976]
[1724876408927,1.515046,59404.0,59403.0,0.0008987]
[1724876409136,1.98201343,59404.0,59403.0,0.0008987]
[1724876409349,2.45662313,59404.0,59403.0,7e-07]
[1724876409566,0.520228,59379.0,59378.0,0.008976]
[1724876409782,0.520228,59379.0,59334.0,0.01]
[1724876409783,0.857147,59372.0,59353.0,0.0606]
[1724876409997,1.65880099,59372.0,59342.0,0.0799]
[1724876410255,2.22856842,59372.0,59331.0,0.0803]
[1724876410522,2.31972563,59372.0,59331.0,0.0004]
[1724876410725,0.84943,59352.0,59331.0,0.0004]
[1724876410935,1.35717303,59352.0,59331.0,0.0004]
[1724876411184,0.16047129,59352.0,59346.0,0.50540786]
[1724876411400,1.00990129,59352.0,59331.0,0.50580786]
[1724876411643,0.65769446,59352.0,59332.0,0.177527]
[1724876411857,0.65769446,59352.0,59332.0,0.008987]
[1724876412071,0.33272246,59352.0,59332.0,0.008987]
[1724876412290,0.112,59352.0,59334.0,0.674145]
[1724876412518,0.005,59326.0,59271.0,0.0004]
[1724876412769,1.023648,59295.0,59294.0,8e-07]
[1724876412978,0.005,59288.0,59278.0,0.50630766]
[1724876413194,0.1110906,59295.0,59278.0,0.50630766]
[1724876413405,0.0787,59311.0,59280.0,0.09668926]
[1724876413406,0.005,59310.0,59280.0,0.09668926]
[1724876413635,0.35,59331.0,59280.0,0.09668926]
[1724876413636,0.0646,59328.0,59295.0,0.005]
[1724876413849,0.50540786,59342.0,59308.0,0.005]
[1724876414066,0.005,59343.0,59309.0,0.00837126]
[1724876414319,0.005,59343.0,59302.0,0.337254]
[1724876414320,0.02645076,59320.0,59319.0,0.50574]
[1724876414500,0.168591,59315.0,59302.0,0.005]
[1724876414736,0.02643932,59335.0,59304.0,0.1]
[1724876414953,0.005,59334.0,59305.0,0.023]
[1724876415163,0.005,59334.0,59306.0,0.00337165]
[1724876415386,0.005,59300.0,59280.0,0.50540786]
[1724876415626,0.00345732,59307.0,59288.0,0.1444]
[1724876415839,0.001,59320.0,59291.0,0.0818]
[1724876415840,0.00345732,59314.0,59291.0,0.0818]
[1724876416036,0.00345732,59320.0,59310.0,0.168604]
[1724876416256,0.02644428,59309.0,59292.0,0.005]
[1724876416464,0.02644428,59309.0,59308.0,0.168611]
[1724876416794,0.00345732,59320.0,59292.0,0.005]
[1724876417016,0.168637,59299.0,59286.0,0.168671]
[1724876417261,0.0647,59317.0,59298.0,0.50540786]
[1724876417470,0.1,59318.0,59309.0,0.005]
[1724876417680,0.01,59326.0,59309.0,0.005]
[1724876417887,0.02644573,59313.0,59310.0,0.337207]
[1724876418090,0.016,59326.0,59315.0,0.168591]
[1724876418302,0.11,59327.0,59317.0,0.168583]
[1724876418530,0.168552,59329.0,59310.0,0.005]
[1724876418531,0.014,59317.0,59313.0,0.33719]
[1724876418774,0.014,59317.0,59316.0,0.168586]
[1724876418974,0.014,59317.0,59316.0,0.505763]
[1724876419392,0.002,59339.0,59320.0,0.0753]
[1724876419622,0.35,59355.0,59316.0,0.337177]
[1724876419623,0.50540786,59407.0,59345.0,0.0602]
[1724876419863,0.026443,59378.0,59362.0,0.005]
[1724876420063,0.002,59396.0,59358.0,0.0753]
[1724876420064,0.336718,59397.0,59369.0,0.0753]
[1724876420314,0.0397118,59397.0,59381.0,0.173401]
[1724876420567,0.0622,59403.0,59392.0,0.005]
[1724876420785,0.01,59393.0,59361.0,0.336917]
[1724876421001,0.01,59393.0,59355.0,0.0602]
[1724876421002,0.00336812,59392.0,59390.0,0.50540786]
[1724876421229,0.01736812,59397.0,59382.0,0.0753]
[1724876421667,0.01,59396.0,59382.0,0.0753]
[1724876421883,0.00336812,59395.0,59388.0,0.168384]
[1724876422097,0.00336812,59395.0,59371.0,0.08]
[1724876422306,0.16837,59393.0,59377.0,0.168412]
[1724876422515,0.00336812,59392.0,59377.0,0.168412]
[1724876422947,0.00336812,59392.0,59372.0,0.002]
[1724876423187,0.005,59317.0,59294.0,0.337301]
[1724876423421,0.168622,59305.0,59287.0,0.168668]
[1724876423644,0.005,59301.0,59283.0,0.0768]
[1724876423872,0.34356743,59305.0,59291.0,0.168659]
[1724876424087,0.00336812,59304.0,59283.0,0.0768]
[1724876424331,0.10430429,59304.0,59283.0,0.0768]
[1724876424563,0.34356743,59290.0,59279.0,0.0008998]
[1724876424797,0.94083843,59280.0,59279.0,0.0008998]
[1724876425052,1.39530327,59280.0,59279.0,0.0008998]
[1724876425278,1.02583843,59280.0,59279.0,0.0008998]
[1724876425500,0.02646826,59288.0,59279.0,0.0008998]
[1724876425776,0.00336812,59287.0,59279.0,0.0008998]
[1724876426022,0.50540786,59324.0,59295.0,0.144]
[1724876426248,0.50540786,59309.0,59298.0,0.173639]
[1724876426460,0.168607,59310.0,59295.0,0.144]
[1724876426679,0.168586,59317.0,59296.0,0.337289]
[1724876426954,0.00419067,59320.0,59295.0,0.13337267]
[1724876427151,0.50540786,59319.0,59297.0,0.337284]
[1724876427368,0.00337267,59318.0,59298.0,0.023]
[1724876427579,0.000818,59320.0,59308.0,0.843055]
[1724876427580,0.004,59309.0,59308.0,0.843055]
[1724876427786,0.000818,59320.0,59310.0,0.168604]
[1724876427992,0.000818,59320.0,59299.0,0.337272]
[1724876428206,0.009818,59320.0,59309.0,0.337213]
[1724876428419,0.009818,59320.0,59296.0,0.133]
[1724876428645,0.0819,59345.0,59319.0,0.16858]
[1724876428864,0.42350786,59336.0,59320.0,0.064]
[1724876429087,0.00337267,59344.0,59320.0,0.064]
[1724876429088,0.00337267,59335.0,59320.0,0.064]
[1724876429290,0.00337267,59341.0,59321.0,0.337144]
[1724876429501,0.00337267,59340.0,59322.0,0.023]
[1724876429726,0.00337267,59340.0,59320.0,0.064]
[1724876429951,0.337094,59331.0,59313.0,0.079]
[1724876430159,0.337094,59331.0,59318.0,0.16858]
[1724876430160,0.00337267,59330.0,59318.0,0.16858]
[1724876430374,0.00337267,59330.0,59313.0,0.079]
[1724876430590,0.00337267,59330.0,59309.0,0.002]
[1724876430591,0.0638,59329.0,59314.0,0.50540786]
[1724876430804,0.0638,59329.0,59295.0,0.079]
[1724876430805,0.005,59317.0,59295.0,0.079]
[1724876431017,0.00337267,59316.0,59306.0,0.50540786]
[1724876431229,0.01,59320.0,59295.0,0.079]
[1724876431443,0.04484416,59316.0,59296.0,0.337289]
[1724876431658,0.168594,59314.0,59313.0,0.001]
[1724876431923,0.337208,59311.0,59297.0,0.01727028]
[1724876432144,0.168679,59284.0,59283.0,0.0008998]
[1724876432370,0.58424643,59284.0,59283.0,0.0008998]
[1724876432584,1.42288907,59284.0,59283.0,0.0008998]
[1724876432794,1.70132343,59284.0,59283.0,0.0008998]
[1724876433233,0.268679,59284.0,59283.0,0.0008998]
[1724876433467,0.1,59284.0,59283.0,0.0008998]
[1724876433680,0.00337267,59289.0,59283.0,0.0008998]
[1724876433897,0.007,59284.0,59283.0,0.0193642]
[1724876434114,0.175679,59284.0,59283.0,0.0018998]
[1724876434325,0.1,59292.0,59283.0,0.0139981]
[1724876434326,0.337348,59286.0,59283.0,0.0139981]
[1724876434565,0.00337267,59287.0,59283.0,0.0139981]
[1724876434566,0.00337267,59287.0,59283.0,0.0018998]
[1724876434777,0.007,59284.0,59283.0,0.0018998]